fUSD/lending_fUSD_20260217
["ID","MTS","AMOUNT","RATE_DAILY","PERIOD"]
[405800317,1771323507638,-4766.07626453,8.199e-05,2]
[405800318,1771323507670,-4766.07626453,8.199e-05,2]
[405800319,1771323507702,-4766.07626453,8.199e-05,2]
[405800320,1771323507734,-4766.07626453,8.199e-05,2]
[405800321,1771323507771,-4766.07626453,8.199e-05,2]
[405800322,1771323507806,-4766.07626453,8.199e-05,2]
[405800323,1771323507838,-4766.07626453,8.199e-05,2]
[405800324,1771323507871,-4766.07626453,8.199e-05,2]
[405800325,1771323507904,-4766.07626453,8.199e-05,2]
[405800326,1771323507937,-230.28983235,8.199e-05,2]
[405800327,1771323507969,-103266.45763566,8.2e-05,2]
[405800328,1771323539547,-980.0,8.198e-05,2]
[405800329,1771323539570,-500.0,8.2e-05,2]
[405800330,1771323539593,-170.42,8.2e-05,2]
[405800331,1771323539614,-4296.55758743,8.2e-05,2]
[405800332,1771323539637,-194053.02241257,8.2e-05,2]
[405800333,1771323570865,-1338.69920235,8.199e-05,2]
[405800334,1771323570886,-115661.30079765,8.2e-05,2]
[405800335,1771323611973,10000.01,8.164e-05,2]
[405800336,1771323611997,10000.01,8.164e-05,2]
[405800337,1771323612018,4154.98,8.164e-05,2]
[405800338,1771323632259,150.0,8.173e-05,2]
[405800345,1771323785092,-250.0,8.198e-05,2]
[405800346,1771323785117,-300.0,8.198e-05,2]
[405800347,1771323785143,-1200.0,8.198e-05,2]
[405800348,1771323785168,-300.0,8.198e-05,2]
[405800349,1771323785191,-150.0,8.198e-05,2]
[405800350,1771323785214,-300.0,8.198e-05,2]
[405800351,1771323785242,-2523.46436184,8.199e-05,2]
[405800352,1771323785266,-2523.46436184,8.199e-05,2]
[405800353,1771323785291,-2523.46436184,8.199e-05,2]
[405800354,1771323785315,-2523.46436184,8.199e-05,2]
[405800355,1771323785339,-2523.46436184,8.199e-05,2]
[405800356,1771323785362,-2523.46436184,8.199e-05,2]
[405800357,1771323785388,-2523.46436184,8.199e-05,2]
[405800358,1771323785413,-2523.46436184,8.199e-05,2]
[405800359,1771323785440,-2523.46436184,8.199e-05,2]
[405800360,1771323785467,-2523.46436184,8.199e-05,2]
[405800361,1771323785493,-2523.46436184,8.199e-05,2]
[405800362,1771323785516,-2523.46436184,8.199e-05,2]
[405800363,1771323785538,-2523.46436184,8.199e-05,2]
[405800364,1771323785561,-2523.46436184,8.199e-05,2]
[405800365,1771323785584,-2523.46436184,8.199e-05,2]
[405800366,1771323785608,-2523.46436184,8.199e-05,2]
[405800367,1771323785630,-219.0,8.199e-05,2]
[405800368,1771323785651,-549.10229322,8.199e-05,2]
[405800369,1771323785675,-2611.08465217,8.199e-05,2]
[405800370,1771323785699,-2611.08465217,8.199e-05,2]
[405800371,1771323785722,-2611.08465217,8.199e-05,2]
[405800372,1771323785745,-2611.08465217,8.199e-05,2]
[405800373,1771323785770,-2611.08465217,8.199e-05,2]
[405800374,1771323785792,-2611.08465217,8.199e-05,2]
[405800375,1771323785815,-2611.08465217,8.199e-05,2]
[405800376,1771323785837,-2611.08465217,8.199e-05,2]
[405800377,1771323785857,-406.5836569,8.199e-05,2]
[405800378,1771323785879,-189.58150033,8.199e-05,2]
[405800379,1771323785900,-510.27609923,8.199e-05,2]
[405800380,1771323785923,-34361.34944352,8.2e-05,2]
[405800381,1771323867139,5695.03,8.099e-05,2]
[405800382,1771323867164,10000.01,8.099e-05,2]
[405800383,1771323867190,10000.01,8.099e-05,2]
[405800384,1771323867215,10000.01,8.099e-05,2]
[405800385,1771323867240,10000.01,8.099e-05,2]
[405800386,1771323867267,10000.01,8.099e-05,2]
[405800387,1771323867291,10000.01,8.099e-05,2]
[405800388,1771323867314,10000.01,8.099e-05,2]
[405800389,1771323867337,10000.01,8.099e-05,2]
[405800390,1771323867361,10000.01,8.099e-05,2]
[405800391,1771323901294,1200.0,8.098e-05,2]
[405800394,1771324021276,300.0,8.098e-05,2]
[405800395,1771324022937,150.0,8.098e-05,2]
[405800396,1771324024151,377.94938476,8.098e-05,2]
[405800397,1771324036179,500.0,8.098e-05,2]
[405800398,1771324036230,500.0,8.098e-05,2]
[405800399,1771324036267,500.0,8.098e-05,2]
[405800400,1771324036308,500.0,8.098e-05,2]
[405800401,1771324036356,500.0,8.098e-05,2]
[405800402,1771324036424,500.0,8.098e-05,2]
[405800403,1771324036486,500.0,8.098e-05,2]
[405800404,1771324036530,500.0,8.098e-05,2]
[405800405,1771324036565,500.0,8.098e-05,2]
[405800406,1771324036599,500.0,8.098e-05,2]
[405800407,1771324036633,500.0,8.098e-05,2]
[405800408,1771324036667,500.0,8.098e-05,2]
[405800409,1771324036701,500.0,8.098e-05,2]
[405800410,1771324036743,500.0,8.098e-05,2]
[405800411,1771324036780,308.30175176,8.098e-05,2]
[405800412,1771324036819,500.0,8.098e-05,2]
[405800413,1771324036856,163.75886348,8.098e-05,2]
[405800414,1771324036884,336.24113652,8.098e-05,2]
[405800415,1771324036935,500.0,8.098e-05,2]
[405800416,1771324036968,500.0,8.098e-05,2]
[405800417,1771324037004,500.0,8.098e-05,2]
[405800418,1771324037052,500.0,8.098e-05,2]
[405800419,1771324037095,500.0,8.098e-05,2]
[405800420,1771324037147,500.0,8.098e-05,2]
[405800421,1771324037181,500.0,8.098e-05,2]
[405800422,1771324037236,500.0,8.098e-05,2]
[405800423,1771324037270,500.0,8.098e-05,2]
[405800424,1771324037311,500.0,8.098e-05,2]
[405800425,1771324037350,500.0,8.098e-05,2]
[405800426,1771324037391,500.0,8.098e-05,2]
[405800427,1771324037425,500.0,8.098e-05,2]
[405800428,1771324037463,500.0,8.098e-05,2]
[405800429,1771324037500,500.0,8.098e-05,2]
[405800430,1771324037538,500.0,8.098e-05,2]
[405800431,1771324037576,500.0,8.098e-05,2]
[405800432,1771324037621,500.0,8.098e-05,2]
[405800438,1771324049974,500.0,8.098e-05,2]
[405800439,1771324050041,500.0,8.098e-05,2]
[405800440,1771324050075,500.0,8.098e-05,2]
[405800441,1771324050113,500.0,8.098e-05,2]
[405800442,1771324050154,500.0,8.098e-05,2]
[405800443,1771324050186,500.0,8.098e-05,2]
[405800444,1771324050224,500.0,8.098e-05,2]
[405800445,1771324050260,500.0,8.098e-05,2]
[405800446,1771324050309,500.0,8.098e-05,2]
[405800447,1771324050342,500.0,8.098e-05,2]
[405800448,1771324050693,500.0,8.098e-05,2]
[405800449,1771324050728,500.0,8.098e-05,2]
[405800450,1771324050766,500.0,8.098e-05,2]
[405800451,1771324050828,500.0,8.098e-05,2]
[405800452,1771324050871,500.0,8.098e-05,2]
[405800453,1771324050906,500.0,8.098e-05,2]
[405800454,1771324050950,500.0,8.098e-05,2]
[405800455,1771324050988,500.0,8.098e-05,2]
[405800456,1771324051031,500.0,8.098e-05,2]
[405800457,1771324051077,500.0,8.098e-05,2]
[405800458,1771324051113,0.01,8.098e-05,2]
[405800459,1771324051138,499.99,8.098e-05,2]
[405800460,1771324051171,500.0,8.098e-05,2]
[405800461,1771324051216,500.0,8.098e-05,2]
[405800462,1771324051285,500.0,8.098e-05,2]
[405800463,1771324051561,308.30175176,8.098e-05,2]
[405800464,1771324085971,161.20288265,8.098e-05,2]
[405800465,1771324088654,500.0,8.098e-05,2]
[405800466,1771324088697,500.0,8.098e-05,2]
[405800467,1771324088769,517.3021903,8.098e-05,2]
[405800468,1771324093911,150.24,6.771e-05,2]
[405800469,1771324097341,392.58581832,7.888e-05,2]
[405800470,1771324098965,168.58913225,8.098e-05,2]
[405800471,1771324109273,266.0,8.098e-05,2]
[405800472,1771324115017,150.0,0.00011233,120]
[405800473,1771324120606,250.84676906,8.098e-05,2]
[405800474,1771324121420,3722.41099874,0.0002,120]
[405800475,1771324141339,300.0,8.098e-05,2]
[405800477,1771324165749,500.0,7.999e-05,2]
[405800478,1771324185294,3984.95145566,7.999e-05,2]
[405800479,1771324185318,10000.01,7.999e-05,2]
[405800480,1771324185340,10000.01,7.999e-05,2]
[405800481,1771324185362,10000.01,7.999e-05,2]
[405800482,1771324185383,10000.01,7.999e-05,2]
[405800483,1771324185405,10000.01,7.999e-05,2]
[405800484,1771324185428,10000.01,7.999e-05,2]
[405800485,1771324185450,10000.01,7.999e-05,2]
[405800486,1771324185472,10000.01,7.999e-05,2]
[405800487,1771324185496,10000.01,7.999e-05,2]
[405800488,1771324201771,1200.0,7.998e-05,2]
[405800489,1771324201948,300.0,7.998e-05,2]
[405800490,1771324202976,150.0,7.998e-05,2]
[405800503,1771324231551,-1689.99184079,7.999e-05,2]
[405800504,1771324231606,-676.92004919,7.999e-05,2]
[405800506,1771324231617,-1228.70968045,7.999e-05,2]
[405800507,1771324231718,-1781449.75494591,7.999e-05,2]
[405800508,1771324231730,-121959.75057432,7.999e-05,2]
[405800509,1771324231743,-45544.96983532,7.999e-05,2]
[405800510,1771324231755,-20818.94318757,7.999e-05,2]
[405800527,1771324232188,264.56456933,7.998e-05,2]
[405800528,1771324233100,500.0,7.998e-05,2]
[405800529,1771324233175,500.0,7.998e-05,2]
[405800530,1771324233225,500.0,7.998e-05,2]
[405800531,1771324233265,500.0,7.998e-05,2]
[405800532,1771324233329,500.0,7.998e-05,2]
[405800533,1771324233368,500.0,7.998e-05,2]
[405800534,1771324233443,261.66035035,7.998e-05,2]
[405800535,1771324233532,500.0,7.998e-05,2]
[405800540,1771324237611,-1432645.91843079,7.999e-05,2]
[405800541,1771324237620,-217.0,7.999e-05,2]
[405800542,1771324237630,-254.44,8.1e-05,2]
[405800543,1771324237640,-191.02133115,8.1e-05,2]
[405800544,1771324237650,-6669.47583207,8.199e-05,2]
[405800545,1771324237659,-500.0,8.219e-05,2]
[405800546,1771324237669,-500.0,8.219e-05,2]
[405800547,1771324237678,-500.0,8.219e-05,2]
[405800548,1771324237688,-500.0,8.219e-05,2]
[405800549,1771324237697,-280.81671815,8.219e-05,2]
[405800550,1771324237707,-3434.5,8.351e-05,2]
[405800551,1771324237717,-150.24,8.464e-05,2]
[405800552,1771324237727,-1501.1,8.5e-05,2]
[405800553,1771324237736,-500.0,8.524e-05,2]
[405800554,1771324237746,-210.31746326,8.7e-05,2]
[405800555,1771324237755,-254.101321,8.733e-05,2]
[405800556,1771324237765,-491230.72895109,8.794e-05,2]
[405800557,1771324237775,-1680.0,8.798e-05,2]
[405800558,1771324237784,-420.0,8.798e-05,2]
[405800559,1771324237793,-255.0,8.798e-05,2]
[405800560,1771324237803,-551.381086,8.814e-05,2]
[405800561,1771324237812,-688.886,8.814e-05,2]
[405800562,1771324237821,-250.0,8.909e-05,2]
[405800563,1771324237831,-250.0,8.909e-05,2]
[405800564,1771324237841,-193.0,8.909e-05,2]
[405800565,1771324237850,-250.0,8.909e-05,2]
[405800566,1771324237859,-150.0,8.919e-05,2]
[405800567,1771324237868,-258.848075,8.919e-05,2]
[405800568,1771324237877,-367.69615,8.919e-05,2]
[405800569,1771324237887,-476.544225,8.919e-05,2]
[405800570,1771324237896,-585.3923,8.919e-05,2]
[405800571,1771324237905,-694.240375,8.919e-05,2]
[405800572,1771324237914,-803.08845,8.919e-05,2]
[405800573,1771324237923,-911.936526,8.919e-05,2]
[405800574,1771324237932,-1020.784601,8.919e-05,2]
[405800575,1771324237941,-1129.632676,8.919e-05,2]
[405800576,1771324237951,-346.58,9.017e-05,2]
[405800577,1771324237959,-299.99,9.017e-05,2]
[405800578,1771324237969,-9999.99,9.018e-05,2]
[405800579,1771324237978,-150.99,9.018e-05,2]
[405800580,1771324237987,-5509.74,9.018e-05,2]
[405800581,1771324237996,-150.99,9.018e-05,2]
[405800582,1771324238005,-83420.67,9.018e-05,2]
[405800583,1771324238014,-29124.47,9.018e-05,2]
[405800585,1771324238023,-999.99,9.018e-05,2]
[405800587,1771324238032,-9999.99,9.018e-05,2]
[405800589,1771324238042,-379.0,9.052e-05,2]
[405800591,1771324238051,-222.0,9.053e-05,2]
[405800593,1771324238061,-1677.99,9.13e-05,2]
[405800595,1771324238071,-500.0,9.13e-05,2]
[405800597,1771324238081,-305.0,9.278e-05,2]
[405800599,1771324238090,-150.0,9.372e-05,2]
[405800601,1771324238099,-500.0,9.372e-05,2]
[405800603,1771324238108,-500.0,9.372e-05,2]
[405800605,1771324238117,-500.0,9.372e-05,2]
[405800607,1771324238126,-500.0,9.372e-05,2]
[405800609,1771324238136,-500.0,9.372e-05,2]
[405800611,1771324238146,-500.0,9.372e-05,2]
[405800613,1771324238155,-500.0,9.372e-05,2]
[405800615,1771324238164,-500.0,9.372e-05,2]
[405800617,1771324238174,-150.0,9.372e-05,2]
[405800618,1771324238184,-500.0,9.372e-05,2]
[405800619,1771324238194,-500.0,9.372e-05,2]
[405800620,1771324238203,-150.0,9.372e-05,2]
[405800621,1771324238214,-150.31509327,9.372e-05,2]
[405800622,1771324238223,-500.0,9.372e-05,2]
[405800623,1771324238233,-596.0,9.372e-05,2]
[405800624,1771324238242,-500.0,9.372e-05,2]
[405800625,1771324238252,-150.0,9.372e-05,2]
[405800626,1771324238261,-500.0,9.372e-05,2]
[405800627,1771324238273,-500.0,9.372e-05,2]
[405800628,1771324238285,-150.0,9.372e-05,2]
[405800629,1771324238295,-150.0,9.372e-05,2]
[405800630,1771324238305,-150.0,9.372e-05,2]
[405800631,1771324238316,-150.0,9.372e-05,2]
[405800632,1771324238326,-500.0,9.372e-05,2]
[405800633,1771324238336,-500.0,9.372e-05,2]
[405800634,1771324238348,-500.0,9.372e-05,2]
[405800635,1771324238359,-150.0,9.372e-05,2]
[405800636,1771324238368,-500.0,9.372e-05,2]
[405800637,1771324238378,-872.0,9.372e-05,2]
[405800638,1771324238388,-500.0,9.372e-05,2]
[405800639,1771324238397,-261.0,9.388e-05,2]
[405800641,1771324238407,-500.0,9.404e-05,2]
[405800643,1771324238416,-1500.0,9.406e-05,2]
[405800645,1771324238425,-520.860422,9.424e-05,2]
[405800646,1771324238435,-151.2254874,9.427e-05,2]
[405800647,1771324238444,-500.0,9.427e-05,2]
[405800648,1771324238453,-500.0,9.427e-05,2]
[405800649,1771324238463,-500.0,9.427e-05,2]
[405800650,1771324238473,-500.0,9.427e-05,2]
[405800651,1771324238482,-500.0,9.427e-05,2]
[405800652,1771324238492,-500.0,9.427e-05,2]
[405800653,1771324238501,-500.0,9.427e-05,2]
[405800654,1771324238512,-500.0,9.427e-05,2]
[405800655,1771324238521,-150.0,9.427e-05,2]
[405800656,1771324238530,-500.0,9.427e-05,2]
[405800657,1771324238540,-500.0,9.427e-05,2]
[405800658,1771324238549,-500.0,9.427e-05,2]
[405800659,1771324238558,-596.0,9.427e-05,2]
[405800660,1771324238567,-500.0,9.427e-05,2]
[405800661,1771324238577,-500.0,9.427e-05,2]
[405800662,1771324238587,-500.0,9.427e-05,2]
[405800663,1771324238596,-244.28993987,9.427e-05,2]
[405800664,1771324238606,-150.0,9.427e-05,2]
[405800665,1771324238615,-150.0,9.427e-05,2]
[405800666,1771324238624,-150.0,9.427e-05,2]
[405800667,1771324238634,-500.0,9.427e-05,2]
[405800668,1771324238643,-500.0,9.427e-05,2]
[405800669,1771324238653,-649.65624143,9.427e-05,2]
[405800670,1771324238663,-205.12968692,9.427e-05,2]
[405800671,1771324238673,-502.16866536,9.427e-05,2]
[405800672,1771324238683,-872.0,9.427e-05,2]
[405800673,1771324238693,-500.87477363,9.427e-05,2]
[405800674,1771324238703,-500.0,9.482e-05,2]
[405800675,1771324238713,-500.0,9.482e-05,2]
[405800676,1771324238725,-500.0,9.482e-05,2]
[405800677,1771324238734,-500.0,9.482e-05,2]
[405800678,1771324238744,-500.0,9.482e-05,2]
[405800679,1771324238754,-500.0,9.482e-05,2]
[405800680,1771324238764,-500.0,9.482e-05,2]
[405800681,1771324238774,-154.49885719,9.482e-05,2]
[405800682,1771324238783,-242.84628954,9.482e-05,2]
[405800683,1771324238794,-500.0,9.482e-05,2]
[405800684,1771324238803,-500.0,9.482e-05,2]
[405800685,1771324238813,-500.0,9.482e-05,2]
[405800686,1771324238823,-596.0,9.482e-05,2]
[405800687,1771324238832,-152.12850518,9.482e-05,2]
[405800688,1771324238842,-500.0,9.482e-05,2]
[405800689,1771324238852,-500.0,9.482e-05,2]
[405800690,1771324238862,-150.0,9.482e-05,2]
[405800691,1771324238871,-200.36674187,9.482e-05,2]
[405800692,1771324238881,-200.18645604,9.482e-05,2]
[405800693,1771324238891,-616.5683879,9.482e-05,2]
[405800694,1771324238900,-500.0,9.482e-05,2]
[405800695,1771324238909,-872.0,9.482e-05,2]
[405800696,1771324238919,-2374.6,9.52e-05,2]
[405800697,1771324238928,-733.91561192,9.523e-05,2]
[405800698,1771324238938,-178.36591542,9.536e-05,2]
[405800699,1771324238947,-500.0,9.536e-05,2]
[405800700,1771324238956,-500.0,9.536e-05,2]
[405800701,1771324238966,-500.0,9.536e-05,2]
[405800702,1771324238975,-500.0,9.536e-05,2]
[405800703,1771324238984,-500.0,9.536e-05,2]
[405800704,1771324238994,-187.36614029,9.536e-05,2]
[405800705,1771324239004,-500.0,9.536e-05,2]
[405800706,1771324239013,-500.0,9.536e-05,2]
[405800707,1771324239023,-596.0,9.536e-05,2]
[405800708,1771324239032,-500.0,9.536e-05,2]
[405800709,1771324239042,-500.0,9.536e-05,2]
[405800710,1771324239051,-200.89245722,9.536e-05,2]
[405800711,1771324239061,-500.0,9.536e-05,2]
[405800712,1771324239071,-872.0,9.536e-05,2]
[405800713,1771324239080,-500.0,9.591e-05,2]
[405800714,1771324239092,-500.0,9.591e-05,2]
[405800715,1771324239102,-500.0,9.591e-05,2]
[405800716,1771324239113,-500.0,9.591e-05,2]
[405800717,1771324239122,-500.0,9.591e-05,2]
[405800718,1771324239132,-500.0,9.591e-05,2]
[405800719,1771324239142,-500.0,9.591e-05,2]
[405800720,1771324239151,-596.0,9.591e-05,2]
[405800721,1771324239161,-500.0,9.591e-05,2]
[405800722,1771324239170,-500.0,9.591e-05,2]
[405800723,1771324239180,-500.0,9.591e-05,2]
[405800724,1771324239190,-872.0,9.591e-05,2]
[405800725,1771324239199,-500.0,9.646e-05,2]
[405800726,1771324239209,-500.0,9.646e-05,2]
[405800727,1771324239219,-500.0,9.646e-05,2]
[405800728,1771324239229,-500.0,9.646e-05,2]
[405800729,1771324239238,-500.0,9.646e-05,2]
[405800730,1771324239248,-500.0,9.646e-05,2]
[405800731,1771324239257,-500.0,9.646e-05,2]
[405800732,1771324239267,-596.0,9.646e-05,2]
[405800733,1771324239280,-500.33776257,9.646e-05,2]
[405800734,1771324239289,-500.0,9.646e-05,2]
[405800735,1771324239299,-500.0,9.646e-05,2]
[405800736,1771324239308,-872.0,9.646e-05,2]
[405800737,1771324239319,-150.0,9.646e-05,2]
[405800738,1771324239328,-262.69,9.646e-05,2]
[405800739,1771324239338,-500.0,9.646e-05,2]
[405800740,1771324239350,-150.0,9.646e-05,2]
[405800741,1771324239359,-500.0,9.646e-05,2]
[405800742,1771324239369,-500.0,9.646e-05,2]
[405800743,1771324239379,-150.0,9.646e-05,2]
[405800744,1771324239389,-500.0,9.646e-05,2]
[405800745,1771324239398,-500.0,9.646e-05,2]
[405800746,1771324239408,-500.0,9.646e-05,2]
[405800747,1771324239419,-466.0,9.646e-05,2]
[405800748,1771324239434,-150.0,9.646e-05,2]
[405800749,1771324239446,-150.0,9.646e-05,2]
[405800750,1771324239457,-500.0,9.646e-05,2]
[405800751,1771324239467,-150.0,9.646e-05,2]
[405800752,1771324239477,-2351.0,9.677e-05,2]
[405800753,1771324239486,-587.0,9.677e-05,2]
[405800754,1771324239495,-433.0,9.677e-05,2]
[405800755,1771324239505,-500.0,9.678e-05,2]
[405800756,1771324239514,-1363.0,9.699e-05,2]
[405800757,1771324239523,-500.0,9.701e-05,2]
[405800758,1771324239532,-475.49905426,9.701e-05,2]
[405800759,1771324239542,-500.0,9.701e-05,2]
[405800760,1771324239551,-500.0,9.701e-05,2]
[405800761,1771324239560,-500.0,9.701e-05,2]
[405800762,1771324239570,-464.38268717,9.701e-05,2]
[405800763,1771324239579,-500.0,9.701e-05,2]
[405800764,1771324239589,-596.0,9.701e-05,2]
[405800765,1771324239599,-630.25617345,9.701e-05,2]
[405800766,1771324239608,-382.17209928,9.701e-05,2]
[405800767,1771324239617,-872.0,9.701e-05,2]
[405800768,1771324239626,-150.0,9.701e-05,2]
[405800769,1771324239636,-500.0,9.701e-05,2]
[405800770,1771324239646,-150.37957529,9.701e-05,2]
[405800771,1771324239655,-500.0,9.701e-05,2]
[405800772,1771324239664,-500.0,9.701e-05,2]
[405800773,1771324239674,-150.07216309,9.701e-05,2]
[405800774,1771324239683,-500.0,9.701e-05,2]
[405800775,1771324239693,-500.0,9.701e-05,2]
[405800776,1771324239702,-500.0,9.701e-05,2]
[405800777,1771324239712,-466.0,9.701e-05,2]
[405800778,1771324239722,-500.0,9.701e-05,2]
[405800779,1771324239732,-279.2964639,9.737e-05,2]
[405800780,1771324239741,-500.0,9.756e-05,2]
[405800781,1771324239752,-500.0,9.756e-05,2]
[405800782,1771324239761,-500.0,9.756e-05,2]
[405800783,1771324239771,-500.0,9.756e-05,2]
[405800784,1771324239780,-500.0,9.756e-05,2]
[405800785,1771324239789,-596.0,9.756e-05,2]
[405800786,1771324239799,-872.0,9.756e-05,2]
[405800787,1771324239808,-150.0,9.756e-05,2]
[405800788,1771324239817,-500.0,9.756e-05,2]
[405800789,1771324239827,-500.0,9.756e-05,2]
[405800790,1771324239836,-500.0,9.756e-05,2]
[405800791,1771324239846,-537.18600864,9.756e-05,2]
[405800792,1771324239855,-500.0,9.756e-05,2]
[405800793,1771324239865,-500.0,9.756e-05,2]
[405800794,1771324239874,-466.0,9.756e-05,2]
[405800795,1771324239884,-500.0,9.756e-05,2]
[405800796,1771324239894,-500.0,9.81e-05,2]
[405800797,1771324239903,-500.0,9.81e-05,2]
[405800798,1771324239913,-500.0,9.81e-05,2]
[405800799,1771324239922,-500.0,9.81e-05,2]
[405800800,1771324239932,-500.0,9.81e-05,2]
[405800801,1771324239943,-596.0,9.81e-05,2]
[405800802,1771324239952,-872.0,9.81e-05,2]
[405800803,1771324239961,-250.53819001,9.81e-05,2]
[405800804,1771324239971,-500.0,9.81e-05,2]
[405800805,1771324239981,-510.76125773,9.81e-05,2]
[405800806,1771324239990,-500.0,9.81e-05,2]
[405800807,1771324239999,-500.0,9.81e-05,2]
[405800808,1771324240009,-500.0,9.81e-05,2]
[405800809,1771324240018,-466.0,9.81e-05,2]
[405800810,1771324240027,-500.0,9.81e-05,2]
[405800811,1771324240036,-743.66,9.857e-05,2]
[405800812,1771324240045,-500.0,9.865e-05,2]
[405800813,1771324240055,-500.0,9.865e-05,2]
[405800814,1771324240064,-155.81655615,9.865e-05,2]
[405800815,1771324240073,-153.57378643,9.865e-05,2]
[405800816,1771324240083,-500.0,9.865e-05,2]
[405800817,1771324240093,-596.0,9.865e-05,2]
[405800818,1771324240102,-872.0,9.865e-05,2]
[405800819,1771324240111,-153.2248447,9.865e-05,2]
[405800820,1771324240120,-500.0,9.865e-05,2]
[405800821,1771324240129,-500.0,9.865e-05,2]
[405800822,1771324240139,-500.0,9.865e-05,2]
[405800823,1771324240148,-466.0,9.865e-05,2]
[405800824,1771324240158,-500.0,9.865e-05,2]
[405800825,1771324240167,-391.49,9.871e-05,2]
[405800826,1771324240176,-264.40365084,9.874e-05,2]
[405800827,1771324240186,-500.0,9.92e-05,2]
[405800828,1771324240195,-500.0,9.92e-05,2]
[405800829,1771324240205,-500.0,9.92e-05,2]
[405800830,1771324240214,-596.0,9.92e-05,2]
[405800831,1771324240225,-872.0,9.92e-05,2]
[405800832,1771324240235,-500.0,9.92e-05,2]
[405800833,1771324240244,-500.0,9.92e-05,2]
[405800834,1771324240254,-500.0,9.92e-05,2]
[405800835,1771324240264,-466.0,9.92e-05,2]
[405800836,1771324240276,-500.0,9.92e-05,2]
[405800837,1771324240286,-262.69,9.92e-05,2]
[405800838,1771324240296,-500.0,9.952e-05,2]
[405800839,1771324240305,-500.0,9.975e-05,2]
[405800840,1771324240315,-163.51122534,9.975e-05,2]
[405800841,1771324240324,-500.0,9.975e-05,2]
[405800842,1771324240333,-596.0,9.975e-05,2]
[405800843,1771324240342,-872.0,9.975e-05,2]
[405800844,1771324240353,-500.0,9.975e-05,2]
[405800845,1771324240362,-500.0,9.975e-05,2]
[405800846,1771324240372,-621.12228144,9.975e-05,2]
[405800847,1771324240381,-466.0,9.975e-05,2]
[405800848,1771324240390,-500.0,9.975e-05,2]
[405800849,1771324240399,-391.20774832,9.976e-05,2]
[405800850,1771324240409,-174.44086209,0.0001,2]
[405800851,1771324240418,-174.44086209,0.0001,2]
[405800852,1771324240427,-500.0,0.0001,2]
[405800853,1771324240437,-151.0,0.0001,2]
[405800854,1771324240447,-151.0,0.0001,2]
[405800855,1771324240456,-151.0,0.0001,2]
[405800856,1771324240466,-500.0,0.0001,2]
[405800857,1771324240476,-151.0,0.0001,2]
[405800858,1771324240486,-500.0,0.0001,2]
[405800859,1771324240495,-151.0,0.0001,2]
[405800860,1771324240505,-151.0,0.0001,2]
[405800861,1771324240515,-500.0,0.0001,2]
[405800862,1771324240524,-151.0,0.0001,2]
[405800863,1771324240534,-151.0,0.0001,2]
[405800864,1771324240544,-500.0,0.0001,2]
[405800865,1771324240812,-151.0,0.0001,2]
[405800866,1771324240822,-151.0,0.0001,2]
[405800867,1771324240831,-500.0,0.0001,2]
[405800868,1771324240841,-151.0,0.0001,2]
[405800869,1771324240850,-151.0,0.0001,2]
[405800870,1771324240860,-500.0,0.0001,2]
[405800871,1771324240869,-151.0,0.0001,2]
[405800872,1771324240879,-151.0,0.0001,2]
[405800873,1771324240888,-500.0,0.0001,2]
[405800874,1771324240898,-151.0,0.0001,2]
[405800875,1771324240907,-151.0,0.0001,2]
[405800876,1771324240916,-500.0,0.0001,2]
[405800877,1771324240925,-151.0,0.0001,2]
[405800878,1771324240935,-151.0,0.0001,2]
[405800879,1771324240944,-500.0,0.0001,2]
[405800880,1771324240953,-151.0,0.0001,2]
[405800881,1771324240963,-151.0,0.0001,2]
[405800882,1771324240972,-151.0,0.0001,2]
[405800883,1771324240982,-500.0,0.0001,2]